bitfinex/quotes_BTCUSD_20230106
["timestamp","ask_amount","ask_price","bid_price","bid_amount"]
[1673040095201,0.02202109,16931.0,16930.0,10.47343018]
[1673040095696,0.02202109,16931.0,16930.0,10.46843018]
[1673040096738,0.02202109,16931.0,16930.0,10.82186141]
[1673040097584,0.02202109,16931.0,16930.0,10.46843863]
[1673040098071,0.02202109,16931.0,16930.0,10.82186141]
[1673040098315,0.02202109,16931.0,16930.0,10.64460459]
[1673040098587,0.02202109,16931.0,16930.0,10.46843824]
[1673040099587,0.02202109,16931.0,16930.0,10.64460459]
[1673040100092,0.02202109,16931.0,16930.0,10.82139834]
[1673040100351,0.02202109,16931.0,16930.0,10.46797556]
[1673040100568,0.02202109,16931.0,16930.0,10.46903088]
[1673040101565,0.02202109,16931.0,16930.0,10.82336722]
[1673040102068,0.02202109,16931.0,16930.0,10.46903088]
[1673040104092,0.02202109,16931.0,16930.0,10.82329226]
[1673040108811,0.02202109,16931.0,16930.0,11.08893294]
[1673040109347,0.02202109,16931.0,16930.0,10.82329226]
[1673040115099,0.02202109,16931.0,16930.0,10.12329226]
[1673040116098,0.02195938,16931.0,16930.0,10.82329226]
[1673040118066,0.02195938,16931.0,16930.0,10.02611473]
[1673040118312,0.02195938,16931.0,16930.0,11.46877912]
[1673040119387,0.02195938,16931.0,16930.0,10.46877912]
[1673040125102,0.02195938,16931.0,16930.0,10.8228785]
[1673040125352,0.02195938,16931.0,16930.0,10.82287812]
[1673040125601,0.02195938,16931.0,16930.0,10.46877912]
[1673040127734,0.02195938,16931.0,16930.0,11.46877912]
[1673040128225,0.02195938,16931.0,16930.0,10.46877912]
[1673040129253,0.02195938,16931.0,16930.0,10.16877912]
[1673040129522,0.25963727,16931.0,16930.0,10.5228738]
[1673040129754,0.25963727,16931.0,16930.0,9.511824]
[1673040129755,0.02195938,16931.0,16930.0,9.511824]
[1673040131291,0.02195938,16931.0,16930.0,9.811824]
[1673040137114,0.02195938,16931.0,16930.0,9.111824]
[1673040138129,0.02195938,16931.0,16930.0,9.811824]
[1673040144147,0.02195938,16931.0,16930.0,9.111824]
[1673040145101,0.02195938,16931.0,16930.0,9.811824]
[1673040148774,0.02195938,16931.0,16930.0,9.83599505]
[1673040151027,0.02195938,16931.0,16930.0,9.811824]
[1673040151276,0.02195938,16931.0,16930.0,9.111824]
[1673040152296,0.02195938,16931.0,16930.0,9.811824]
[1673040163505,0.62888238,16931.0,16930.0,9.811824]
[1673040164249,0.62888238,16931.0,16930.0,9.111824]
[1673040164591,1.43215988,16931.0,16930.0,9.811824]
[1673040166073,0.02195938,16931.0,16930.0,9.811824]
[1673040167555,0.8052672,16931.0,16930.0,9.811824]
[1673040167818,1.43215988,16931.0,16930.0,9.811824]
[1673040168068,0.62888238,16931.0,16930.0,9.811824]
[1673040169114,0.8052672,16931.0,16930.0,9.811824]
[1673040169364,0.1983442,16931.0,16930.0,9.811824]
[1673040170652,0.02195938,16931.0,16930.0,9.811824]
[1673040170923,0.1983442,16931.0,16930.0,9.811824]
[1673040171722,0.1837112,16931.0,16930.0,9.811824]
[1673040174220,0.1587112,16931.0,16930.0,9.811824]
[1673040175244,0.7656342,16931.0,16930.0,9.811824]
[1673040175987,1.5689117,16931.0,16930.0,9.811824]
[1673040176830,0.7656342,16931.0,16930.0,9.811824]
[1673040177275,0.1587112,16931.0,16930.0,9.811824]
[1673040178816,1.63348634,16932.0,16930.0,9.811824]
[1673040179069,1.98654886,16932.0,16931.0,0.3]
[1673040179315,1.98654886,16932.0,16931.0,0.590632]
[1673040179568,1.63348634,16932.0,16931.0,0.890632]
[1673040179826,1.98654886,16932.0,16931.0,8.390632]
[1673040180348,0.83020884,16932.0,16931.0,8.390632]
[1673040180572,1.63348634,16932.0,16931.0,8.390632]
[1673040180794,1.98654886,16932.0,16931.0,8.390632]
[1673040181580,1.98654886,16932.0,16931.0,0.590632]
[1673040181835,2.59347186,16932.0,16931.0,0.590632]
[1673040182338,1.98654886,16932.0,16931.0,0.590632]
[1673040182587,2.42787701,16932.0,16931.0,0.590632]
[1673040183077,2.16329809,16932.0,16931.0,0.590632]
[1673040183330,2.42801007,16932.0,16931.0,0.590632]
[1673040184260,1.98668192,16932.0,16931.0,0.590632]
[1673040185315,2.42801007,16932.0,16931.0,0.590632]
[1673040186418,1.98668192,16932.0,16931.0,0.590632]
[1673040186666,2.16329809,16932.0,16931.0,0.590632]
[1673040186933,2.79705354,16932.0,16931.0,0.590632]
[1673040187190,3.40397654,16932.0,16931.0,0.590632]
[1673040187702,2.79705354,16932.0,16931.0,0.590632]
[1673040188660,3.40397654,16932.0,16931.0,0.590632]
[1673040189153,2.79705354,16932.0,16931.0,0.590632]
[1673040192380,2.7975068,16932.0,16931.0,0.590632]
[1673040192629,2.79750907,16932.0,16931.0,0.590632]
[1673040193673,3.40443207,16932.0,16931.0,0.590632]
[1673040194193,2.79750907,16932.0,16931.0,0.590632]
[1673040195168,3.05136955,16932.0,16931.0,0.590632]
[1673040195765,3.05136955,16932.0,16930.0,0.590642]
[1673040195766,2.44444655,16932.0,16930.0,0.590642]
[1673040196000,1.42125461,16931.0,16930.0,0.590642]
[1673040196474,1.59773543,16931.0,16930.0,0.590642]
[1673040196631,2.23173027,16931.0,16930.0,0.590642]
[1673040196886,1.59773543,16931.0,16930.0,0.590642]
[1673040197092,1.42121262,16931.0,16930.0,0.658642]
[1673040197370,1.86254077,16931.0,16930.0,0.590642]
[1673040197611,1.59773543,16931.0,16930.0,0.731642]
[1673040197856,1.86253911,16931.0,16930.0,0.731642]
[1673040198094,1.59773543,16931.0,16930.0,0.731642]
[1673040198321,1.86253775,16931.0,16930.0,0.731642]
[1673040198586,1.86253196,16931.0,16930.0,0.731642]
[1673040198828,2.22580248,16931.0,16930.0,0.731642]
[1673040199084,2.83272548,16931.0,16930.0,0.731642]
[1673040199550,2.83272548,16931.0,16930.0,0.141]
[1673040199551,2.92443568,16931.0,16930.0,0.141]
[1673040200517,3.53135868,16931.0,16930.0,0.141]
[1673040200736,3.53115077,16931.0,16930.0,0.141]
[1673040201686,2.90308372,16931.0,16930.0,0.141]
[1673040201935,2.72640667,16931.0,16930.0,0.141]
[1673040202177,3.16773482,16931.0,16930.0,0.141]
[1673040202409,2.90308372,16931.0,16930.0,0.141]
[1673040202651,3.16768306,16931.0,16930.0,0.141]
[1673040202907,2.90308372,16931.0,16930.0,0.141]
[1673040203153,3.53043584,16931.0,16930.0,0.141]
[1673040203608,2.92351284,16931.0,16930.0,0.141]
[1673040203846,2.29616072,16931.0,16930.0,0.141]
[1673040204772,2.11942311,16931.0,16930.0,0.141]
[1673040205033,2.56075126,16931.0,16930.0,0.141]
[1673040205719,2.29616072,16931.0,16930.0,0.141]
[1673040207313,2.92385811,16931.0,16930.0,0.141]
[1673040207565,2.92385673,16931.0,16930.0,0.141]
[1673040208703,2.29616072,16931.0,16930.0,0.141]
[1673040209427,2.92380105,16931.0,16930.0,0.141]
[1673040209669,2.9238002,16931.0,16930.0,0.141]
[1673040211467,2.29616072,16931.0,16930.0,0.141]
[1673040211709,2.11936709,16931.0,16930.0,0.141]
[1673040212449,2.29616072,16931.0,16930.0,0.141]
[1673040213139,2.29616072,16931.0,16930.0,0.1409334]
[1673040213608,2.56068053,16931.0,16930.0,0.1409334]
[1673040214081,2.11935238,16931.0,16930.0,0.1409334]
[1673040214636,2.56068053,16931.0,16930.0,0.1409334]
[1673040215161,2.29616072,16931.0,16930.0,0.1409334]
[1673040219637,2.92413197,16931.0,16930.0,0.1409334]
[1673040220302,3.53105497,16931.0,16930.0,0.1409334]
[1673040220832,2.92413197,16931.0,16930.0,0.1409334]
[1673040222328,3.2577484,16931.0,16930.0,0.1409334]
[1673040222604,2.90482653,16931.0,16930.0,0.1409334]
[1673040222857,3.1781331,16931.0,16930.0,0.1409334]
[1673040223112,2.73680495,16931.0,16930.0,0.1409334]
[1673040223352,3.14228351,16931.0,16930.0,0.1409334]
[1673040223622,3.80224532,16931.0,16930.0,0.1409334]
[1673040224120,4.17063428,16931.0,16930.0,0.1409334]
[1673040224380,0.09438837,16929.0,16927.0,0.590768]
[1673040224613,0.97703906,16928.0,16927.0,0.590768]
[1673040224869,0.97703906,16928.0,16927.0,1.290768]
[1673040225640,0.97703906,16928.0,16927.0,0.590768]
[1673040226122,0.99103906,16928.0,16927.0,0.628768]
[1673040227638,0.014,16928.0,16927.0,1.628768]
[1673040227890,0.81467694,16928.0,16927.0,1.628768]
[1673040228390,0.014,16928.0,16927.0,1.9194734]
[1673040228641,0.014,16928.0,16927.0,2.2194734]
[1673040229149,0.81467694,16928.0,16927.0,2.2194734]
[1673040232180,0.81467694,16928.0,16927.0,1.9194734]
[1673040233675,0.81467694,16928.0,16927.0,1.2194734]
[1673040234609,0.81467694,16928.0,16927.0,1.9194734]
[1673040234860,1.42159994,16928.0,16927.0,1.9194734]
[1673040235098,2.27531894,16928.0,16927.0,9.4194734]
[1673040235377,1.66839594,16928.0,16927.0,9.4194734]
[1673040235624,1.66839594,16928.0,16927.0,9.7194734]
[1673040235886,1.49203382,16928.0,16927.0,9.4194734]
[1673040236147,1.49203382,16928.0,16927.0,1.9194734]
[1673040236379,2.09895682,16928.0,16927.0,2.2194734]
[1673040236630,1.49203382,16928.0,16927.0,2.2194734]
[1673040239833,1.49203382,16928.0,16927.0,1.9194734]
[1673040240055,1.66839594,16928.0,16927.0,1.9194734]
[1673040240804,1.66839594,16928.0,16927.0,1.2194734]
[1673040241321,1.49203382,16928.0,16927.0,1.2194734]
[1673040241575,1.66839594,16928.0,16927.0,1.2194734]
[1673040241831,1.42159994,16928.0,16927.0,2.2194734]
[1673040242077,0.81467694,16928.0,16927.0,9.7194734]
[1673040243031,0.81467694,16928.0,16927.0,2.2194734]
[1673040243287,1.42159994,16928.0,16927.0,2.2194734]
[1673040243748,0.81467694,16928.0,16927.0,2.2194734]
[1673040244246,0.99103906,16928.0,16927.0,1.9194734]
[1673040244727,0.99103906,16928.0,16927.0,1.3287014]
[1673040244969,0.99103906,16928.0,16927.0,1.6287014]
[1673040245220,0.99103906,16928.0,16927.0,1.3287014]
[1673040246467,0.99103906,16928.0,16927.0,1.3237014]
[1673040247959,0.99103906,16928.0,16927.0,0.6237014]
[1673040248208,1.25558225,16928.0,16927.0,0.6237014]
[1673040248457,1.86250525,16928.0,16927.0,0.6237014]
[1673040248971,1.25558225,16928.0,16927.0,0.6237014]
[1673040249421,1.43194438,16928.0,16927.0,0.6237014]
[1673040249918,2.21517976,16928.0,16927.0,0.6237014]
[1673040250179,2.03886738,16928.0,16927.0,0.6237014]
[1673040250417,1.43194438,16928.0,16927.0,0.6237014]
[1673040250632,1.60824238,16928.0,16927.0,0.6237014]
[1673040251389,2.21516538,16928.0,16927.0,0.6237014]
[1673040252172,1.86244113,16928.0,16927.0,0.6237014]
[1673040252573,2.21516538,16928.0,16927.0,0.6237014]
[1673040252830,1.86244113,16928.0,16927.0,0.6237014]
[1673040253346,1.86244113,16928.0,16927.0,0.038]
[1673040253566,1.25551813,16928.0,16927.0,0.038]
[1673040254025,1.60824238,16928.0,16927.0,0.038]
[1673040254492,2.21516538,16928.0,16927.0,0.038]
[1673040254987,1.86244113,16928.0,16927.0,0.038]
[1673040255235,1.25551813,16928.0,16927.0,0.038]
[1673040256798,1.60824238,16928.0,16927.0,0.038]
[1673040257031,1.25551813,16928.0,16927.0,0.038]
[1673040258557,1.25551813,16928.0,16927.0,0.628772]
[1673040258824,0.45484119,16928.0,16927.0,0.928772]
[1673040259078,0.190298,16928.0,16927.0,1.628772]
[1673040261958,0.99097494,16928.0,16927.0,1.628772]
[1673040262228,0.99097494,16928.0,16927.0,9.128772]
[1673040262475,0.99097494,16928.0,16927.0,8.828772]
[1673040262708,1.25551813,16928.0,16927.0,8.828772]
[1673040263207,1.25551813,16928.0,16927.0,1.328772]
[1673040263464,1.25551813,16928.0,16927.0,1.628772]
[1673040263682,0.99097494,16928.0,16927.0,9.128772]
[1673040263948,1.25551813,16928.0,16927.0,9.128772]
[1673040264465,0.190298,16928.0,16927.0,9.128772]
[1673040264741,1.25551813,16928.0,16927.0,9.128772]
[1673040265008,0.99097494,16928.0,16927.0,8.428772]
[1673040265197,1.25551813,16928.0,16927.0,8.428772]
[1673040265950,1.25551813,16928.0,16927.0,9.128772]
[1673040266458,0.99097494,16928.0,16927.0,9.128772]
[1673040266955,0.190298,16928.0,16927.0,9.128772]
[1673040271391,0.014,16928.0,16927.0,10.319544]
[1673040271754,0.01390911,16928.0,16927.0,11.2365102]
[1673040272048,0.01390911,16928.0,16927.0,11.43775831]
[1673040272324,0.10838837,16929.0,16927.0,11.05949258]
[1673040272623,0.10838837,16929.0,16928.0,0.97840788]
[1673040272820,0.10838837,16929.0,16928.0,2.85988188]
[1673040273066,0.10838837,16929.0,16928.0,10.35988188]
[1673040273555,0.09438837,16929.0,16928.0,10.35988188]
[1673040273802,0.10738837,16929.0,16928.0,10.41087332]
[1673040274562,0.10738837,16929.0,16928.0,9.90951412]
[1673040274803,0.10738837,16929.0,16928.0,10.41050513]
[1673040275310,0.10738837,16929.0,16928.0,9.90951412]
[1673040277803,0.10238837,16929.0,16928.0,9.90951412]
[1673040278547,0.10238837,16929.0,16928.0,9.732474]
[1673040285985,0.10238837,16929.0,16928.0,10.332474]
[1673040289050,0.10238837,16929.0,16928.0,9.732474]
[1673040294576,0.09738837,16929.0,16928.0,9.732474]
[1673040295808,0.09738837,16929.0,16928.0,9.032474]
[1673040296311,0.09738837,16929.0,16928.0,9.732474]
[1673040300258,0.09238837,16929.0,16928.0,9.732474]
[1673040300987,0.08738837,16929.0,16928.0,9.732474]
[1673040302609,0.08738837,16929.0,16928.0,9.75728588]
[1673040304100,0.013,16929.0,16928.0,9.75728588]
[1673040304350,1.06707694,16929.0,16928.0,9.75728588]
[1673040304595,0.81367694,16929.0,16928.0,9.75728588]
[1673040305114,0.013,16929.0,16928.0,9.75728588]
[1673040308345,0.013,16929.0,16928.0,9.732474]
[1673040310342,0.013,16929.0,16928.0,9.90951412]
[1673040311813,0.013,16929.0,16928.0,10.17529442]
[1673040312062,0.013,16929.0,16928.0,9.90951412]
[1673040313302,0.013,16929.0,16928.0,9.732474]
[1673040313787,0.008,16929.0,16928.0,9.732474]
[1673040314796,0.80867694,16929.0,16928.0,9.732474]
[1673040315807,0.80867694,16929.0,16928.0,2.232474]
[1673040315808,0.98497494,16929.0,16928.0,2.232474]
[1673040316322,0.98497494,16929.0,16928.0,1.532474]
[1673040316557,0.98497494,16929.0,16928.0,1.232474]
[1673040317334,0.97997494,16929.0,16928.0,1.232474]
[1673040317595,1.24451813,16929.0,16928.0,1.232474]
[1673040318083,1.85144113,16929.0,16928.0,0.641737]
[1673040318340,2.35717003,16929.0,16928.0,0.641737]
[1673040318589,1.75024703,16929.0,16928.0,0.641737]
[1673040318827,1.75024703,16929.0,16928.0,0.64164455]
[1673040321029,1.75024703,16929.0,16928.0,0.051]
[1673040321279,1.74524703,16929.0,16928.0,0.051]
[1673040321532,1.74024703,16929.0,16928.0,0.051]
[1673040322073,2.09297128,16929.0,16928.0,0.051]
[1673040322231,1.74024703,16929.0,16928.0,0.051]
[1673040322674,2.09297128,16929.0,16928.0,0.051]
[1673040322892,1.91667328,16929.0,16928.0,0.051]
[1673040323651,2.09276555,16929.0,16928.0,0.051]
[1673040324198,1.7400413,16929.0,16928.0,0.051]
[1673040327085,2.3469643,16929.0,16928.0,0.051]
[1673040327617,1.7400413,16929.0,16928.0,0.051]
[1673040330228,2.09276555,16929.0,16928.0,0.051]
[1673040330466,1.7400413,16929.0,16928.0,0.051]
[1673040330730,1.2343124,16929.0,16928.0,0.051]
[1673040330997,0.96976921,16929.0,16928.0,0.641737]
[1673040331240,0.96976921,16929.0,16928.0,0.941737]
[1673040331499,0.96976921,16929.0,16928.0,1.532474]
[1673040331751,3.3489189,16930.0,16928.0,1.532474]
[1673040331999,0.80067694,16929.0,16928.0,1.532474]
[1673040332763,0.80067694,16929.0,16928.0,1.481474]
[1673040333014,0.80067694,16929.0,16928.0,1.544474]
[1673040333275,0.80067694,16929.0,16928.0,1.481474]
[1673040333567,0.81267694,16929.0,16928.0,1.544474]
[1673040334079,1.41959994,16929.0,16928.0,1.544474]
[1673040334337,0.81267694,16929.0,16928.0,9.044474]
[1673040335620,0.80267694,16929.0,16928.0,9.044474]
[1673040335920,0.97876921,16929.0,16928.0,9.044474]
[1673040336113,0.97876921,16929.0,16928.0,8.744474]
[1673040336702,0.97876921,16929.0,16928.0,9.044474]
[1673040337289,0.18809227,16929.0,16928.0,8.744474]
[1673040337509,0.012,16929.0,16928.0,9.76928588]
[1673040338231,0.012,16929.0,16928.0,9.744474]
[1673040339414,0.012,16929.0,16928.0,10.52151412]
[1673040339659,0.012,16929.0,16928.0,11.02369541]
[1673040340486,0.012,16929.0,16928.0,10.42369541]
[1673040340714,0.012,16929.0,16928.0,9.92151412]
[1673040340958,0.012,16929.0,16928.0,10.52151412]
[1673040341460,0.012,16929.0,16928.0,9.92151412]
[1673040341738,0.012,16929.0,16928.0,10.52151412]
[1673040343632,0.80067694,16931.0,16930.0,0.1347]
[1673040343821,0.18812463,16932.0,16930.0,0.8347]
[1673040344063,0.98880157,16932.0,16931.0,0.3]
[1673040344324,0.98880157,16932.0,16931.0,1.481264]
[1673040345063,1.04180157,16932.0,16931.0,1.487264]
[1673040346045,1.04180157,16932.0,16931.0,1.481264]
[1673040346046,0.98880157,16932.0,16931.0,1.481264]
[1673040346563,0.99180157,16932.0,16931.0,1.504264]
[1673040346817,0.98880157,16932.0,16931.0,1.481264]
[1673040347052,1.30634476,16932.0,16931.0,1.487264]
[1673040347290,1.25334476,16932.0,16931.0,1.181264]
[1673040347566,0.98880157,16932.0,16931.0,1.181264]
[1673040348068,0.99180157,16932.0,16931.0,1.204264]
[1673040348520,0.99180157,16932.0,16931.0,1.504264]
[1673040348790,0.99180157,16932.0,16931.0,1.204264]
[1673040349272,0.99180157,16932.0,16931.0,1.181264]
[1673040349506,1.04180157,16932.0,16931.0,1.187264]
[1673040349745,0.98880157,16932.0,16931.0,1.181264]
[1673040349998,0.99180157,16932.0,16931.0,1.204264]
[1673040350251,1.77442094,16932.0,16931.0,1.204264]
[1673040350510,2.73406819,16932.0,16931.0,1.204264]
[1673040350734,2.55797592,16932.0,16931.0,1.204264]
[1673040350981,1.95105292,16932.0,16931.0,1.204264]
[1673040351232,2.12714789,16932.0,16931.0,1.204264]
[1673040352221,1.95105292,16932.0,16931.0,1.204264]
[1673040354862,2.39195823,16932.0,16931.0,1.204264]
[1673040355188,2.39161833,16932.0,16931.0,1.204264]
[1673040355915,1.94771302,16932.0,16931.0,1.181264]
[1673040356175,2.00071302,16932.0,16931.0,1.187264]
[1673040356420,2.44161833,16932.0,16931.0,1.187264]
[1673040357183,2.00071302,16932.0,16931.0,1.187264]
[1673040357423,2.44161833,16932.0,16931.0,1.187264]
[1673040357931,2.17741504,16932.0,16931.0,1.187264]
[1673040359163,2.00070161,16932.0,16931.0,1.187264]
[1673040359462,2.78375756,16932.0,16931.0,1.187264]
[1673040359641,2.43103331,16932.0,16931.0,1.187264]
[1673040359905,1.82411031,16932.0,16931.0,1.187264]
[1673040361098,1.82411031,16932.0,16931.0,1.487264]
[1673040361356,2.43103331,16932.0,16931.0,1.487264]
[1673040361682,1.82411031,16932.0,16931.0,1.487264]
[1673040361863,0.24116531,16932.0,16931.0,1.487264]
[1673040362949,1.64876525,16932.0,16931.0,1.487264]
[1673040363237,0.24116531,16932.0,16931.0,1.487264]
[1673040363446,0.06503236,16932.0,16931.0,1.487264]
[1673040363703,0.24116531,16932.0,16931.0,1.487264]
[1673040364445,0.24116531,16932.0,16931.0,2.187264]
[1673040364689,0.06503236,16932.0,16931.0,2.187264]
[1673040365428,1.04184225,16932.0,16931.0,2.187264]
[1673040365965,1.04184225,16932.0,16931.0,1.487264]
[1673040366437,1.64876525,16932.0,16931.0,1.487264]
[1673040367005,1.90180682,16932.0,16931.0,1.187264]
[1673040367716,2.07535912,16932.0,16931.0,1.187264]
[1673040367979,2.68228212,16932.0,16931.0,1.187264]
[1673040368489,2.68228212,16932.0,16931.0,1.182264]
[1673040368490,2.07535912,16932.0,16931.0,1.182264]
[1673040370084,2.51626443,16932.0,16931.0,1.182264]
[1673040370275,2.87685706,16932.0,16931.0,1.182264]
[1673040371034,2.25207255,16932.0,16931.0,1.182264]
[1673040371291,2.87758059,16932.0,16931.0,1.182264]
[1673040371544,2.87258059,16932.0,16931.0,1.182264]
[1673040373055,2.51985634,16932.0,16931.0,1.182264]
[1673040373558,2.87242323,16932.0,16931.0,1.182264]
[1673040374300,2.51985634,16932.0,16931.0,1.182264]
[1673040377660,3.12677934,16932.0,16931.0,1.182264]
[1673040377904,2.51985634,16932.0,16931.0,1.182264]
[1673040378157,2.87261971,16932.0,16931.0,1.182264]
[1673040378834,2.51985634,16932.0,16931.0,1.182264]
[1673040381097,2.87267252,16932.0,16931.0,1.182264]
[1673040381629,1.47513254,16932.0,16931.0,1.482264]
[1673040383311,0.85091295,16932.0,16931.0,1.482264]
[1673040383551,0.49809677,16932.0,16931.0,1.482264]
[1673040384014,1.29877371,16932.0,16931.0,1.482264]
[1673040384752,0.49809677,16932.0,16931.0,1.482264]
[1673040386841,0.49309677,16932.0,16931.0,2.182264]
[1673040387529,1.29377371,16932.0,16931.0,2.182264]
[1673040387772,1.47013254,16932.0,16931.0,2.182264]
[1673040388015,2.07705554,16932.0,16931.0,1.882264]
[1673040388263,1.47013254,16932.0,16931.0,1.482264]
[1673040389760,1.47013254,16932.0,16931.0,1.182264]
[1673040389985,1.47013254,16932.0,16931.0,1.482264]
[1673040395289,1.46513254,16932.0,16931.0,1.482264]
[1673040395521,2.07205554,16932.0,16931.0,1.482264]
[1673040395773,1.46513254,16932.0,16931.0,1.482264]
[1673040398793,0.48803962,16932.0,16931.0,1.482264]
[1673040401212,0.48803962,16932.0,16931.0,2.182264]
[1673040402352,0.35333962,16932.0,16931.0,2.182264]
[1673040403066,0.1764002,16932.0,16931.0,2.182264]
[1673040405952,2.7508972,16932.0,16931.0,0.591632]
[1673040406186,3.00500402,16932.0,16931.0,0.591632]
[1673040406452,2.21095466,16932.0,16931.0,0.591632]
[1673040406694,2.39808102,16932.0,16931.0,0.591632]
[1673040407675,3.00500402,16932.0,16931.0,0.591632]
[1673040408154,1.95717571,16932.0,16931.0,0.006]
[1673040408450,2.24101612,16932.0,16931.0,0.006]
[1673040408694,2.80502065,16932.0,16931.0,0.006]
[1673040408975,3.41194365,16932.0,16931.0,0.006]
[1673040409429,3.11259773,16932.0,16931.0,0.006]
[1673040410158,2.50567473,16932.0,16931.0,0.006]
[1673040410693,2.58282697,16932.0,16931.0,0.006]
[1673040411205,1.97590397,16932.0,16931.0,0.006]
[1673040412927,2.50567473,16932.0,16931.0,0.006]
[1673040413172,3.11259773,16932.0,16931.0,0.006]
[1673040413682,0.00382214,16930.0,16929.0,1.181354]
[1673040413923,2.02165709,16930.0,16929.0,0.590674]
[1673040414173,1.41473409,16930.0,16929.0,0.590674]
[1673040414898,1.41473409,16930.0,16929.0,0.708674]
[1673040414899,1.42073409,16930.0,16929.0,0.708674]
[1673040419218,2.15189116,16930.0,16929.0,0.708674]
[1673040419476,1.97547082,16930.0,16929.0,0.708674]
[1673040419929,2.58239382,16930.0,16929.0,0.708674]
[1673040420154,2.58239382,16930.0,16929.0,0.118]
[1673040420604,1.97547082,16930.0,16929.0,0.118]
[1673040421076,2.15160427,16930.0,16929.0,0.118]
[1673040421351,1.79911136,16930.0,16929.0,0.708702]
[1673040423617,1.53491556,16930.0,16929.0,0.708702]
[1673040424097,0.18095559,16930.0,16929.0,1.599404]
[1673040424622,0.00482214,16930.0,16929.0,1.599404]
[1673040426979,0.61174514,16930.0,16929.0,1.599404]
[1673040427243,0.00482214,16930.0,16929.0,1.599404]
[1673040429605,0.7988715,16930.0,16929.0,1.599404]
[1673040431619,0.00482069,16930.0,16929.0,1.599404]
[1673040432348,0.79887005,16930.0,16929.0,1.599404]
[1673040432889,0.9750035,16930.0,16929.0,1.599404]
[1673040433145,0.9750035,16930.0,16929.0,1.299404]
[1673040434638,0.9750035,16930.0,16929.0,1.599404]
[1673040434930,0.79887005,16930.0,16929.0,1.599404]
[1673040435184,0.9750035,16930.0,16929.0,1.599404]
[1673040435939,0.9750035,16930.0,16929.0,1.299404]
[1673040436437,1.8461223,16930.0,16929.0,1.299404]
[1673040436976,1.2391993,16930.0,16929.0,1.299404]
[1673040437685,0.00482069,16930.0,16929.0,1.599404]
[1673040439724,0.00482069,16930.0,16929.0,2.299404]
[1673040441176,0.00482069,16930.0,16929.0,9.799404]
[1673040442081,0.00482069,16930.0,16929.0,2.299404]
[1673040442575,1.78147592,16932.0,16929.0,9.82029031]
[1673040442820,0.44032925,16932.0,16930.0,0.3]
[1673040443082,0.44032925,16932.0,16931.0,1.181264]
[1673040443324,0.17613345,16932.0,16931.0,1.481264]
[1673040443567,0.44032925,16932.0,16931.0,1.481264]
[1673040444919,0.44532925,16932.0,16931.0,1.481264]
[1673040445198,0.44032925,16932.0,16931.0,1.481264]
[1673040445422,0.46132925,16932.0,16931.0,1.49915821]
[1673040445882,0.19713345,16932.0,16931.0,1.49915821]
[1673040446118,2.19372765,16933.0,16931.0,1.49915821]
[1673040446356,2.19372765,16933.0,16932.0,0.3]
[1673040446669,2.0175942,16933.0,16932.0,1.481194]
[1673040447482,2.0175942,16933.0,16932.0,1.530194]
[1673040447483,2.0205942,16933.0,16932.0,1.530194]
[1673040447757,2.0205942,16933.0,16932.0,1.230194]
[1673040448428,2.6275172,16933.0,16932.0,1.230194]
[1673040450801,2.6275172,16933.0,16932.0,1.530194]
[1673040451020,2.19684126,16933.0,16932.0,1.530194]
[1673040451919,1.84434835,16933.0,16932.0,1.530194]
[1673040452150,2.19684126,16933.0,16932.0,1.230194]
[1673040453395,2.0205276,16933.0,16932.0,1.230194]
[1673040453618,1.84426659,16933.0,16932.0,1.530194]
[1673040453804,2.1967595,16933.0,16932.0,1.230194]
[1673040453944,2.0205276,16933.0,16932.0,1.230194]
[1673040457553,1.41681147,16933.0,16932.0,1.230194]
[1673040459058,1.41681147,16933.0,16932.0,1.530194]
[1673040459547,1.41681147,16933.0,16932.0,1.54652695]
[1673040460046,1.41181147,16933.0,16932.0,1.54652695]
[1673040460917,1.41181147,16933.0,16932.0,1.24652695]
[1673040462612,1.41181147,16933.0,16932.0,1.54652695]
[1673040463108,1.40681147,16933.0,16932.0,1.24652695]
[1673040463355,1.40681147,16933.0,16932.0,1.54652695]
[1673040465685,1.40681147,16933.0,16932.0,1.24652695]
[1673040468506,1.40681147,16933.0,16932.0,1.54652695]
[1673040470508,0.61968871,16933.0,16932.0,1.24652695]
[1673040470751,0.61968871,16933.0,16932.0,1.54652695]
[1673040470972,1.41030929,16933.0,16932.0,1.54652695]
[1673040471467,1.41030929,16933.0,16932.0,1.51152695]
[1673040472460,1.41030929,16933.0,16932.0,1.21152695]
[1673040472702,2.01723229,16933.0,16932.0,1.51152695]
[1673040472952,1.41030929,16933.0,16932.0,1.51152695]
[1673040473953,0.61968871,16933.0,16932.0,1.51152695]
[1673040475184,1.40393093,16933.0,16932.0,1.46252695]
[1673040475431,1.40393093,16933.0,16932.0,1.58352695]
[1673040475695,1.4089276,16933.0,16932.0,1.58352695]
[1673040477362,1.40878504,16933.0,16932.0,1.58352695]
[1673040477867,2.19790538,16933.0,16932.0,1.58352695]
[1673040478394,2.19783552,16933.0,16932.0,1.58352695]
[1673040479132,0.79810905,16933.0,16932.0,1.58352695]
[1673040479378,0.62229786,16933.0,16932.0,1.58352695]
[1673040479880,0.79810905,16933.0,16932.0,1.58352695]
[1673040480415,1.41089913,16933.0,16932.0,1.59671771]
[1673040480690,2.19793024,16933.0,16932.0,1.59671771]
[1673040480914,2.80492422,16933.0,16932.0,1.59671771]
[1673040481124,2.19800122,16933.0,16932.0,1.59671771]
[1673040481339,1.40540513,16933.0,16932.0,1.59671771]
[1673040482273,2.77806066,16933.0,16932.0,1.59671771]
[1673040482708,2.17113766,16933.0,16932.0,1.59671771]
[1673040483196,1.82413875,16933.0,16932.0,1.59671771]
[1673040483962,1.82412098,16933.0,16932.0,1.59671771]
[1673040484453,1.05840622,16933.0,16932.0,1.59671771]
[1673040485519,1.82411707,16933.0,16932.0,1.59671771]
[1673040486709,1.82411707,16933.0,16932.0,1.29671771]
[1673040489216,1.38350093,16933.0,16932.0,1.28038476]
[1673040489457,1.99042393,16933.0,16932.0,1.28038476]
[1673040489986,1.38350093,16933.0,16932.0,1.28038476]
[1673040490990,1.38350093,16933.0,16932.0,1.58038476]
[1673040490991,2.43185563,16933.0,16932.0,1.58038476]
[1673040491240,1.38350093,16933.0,16932.0,1.58038476]
[1673040491488,1.38350093,16933.0,16932.0,1.60051324]
[1673040491489,1.05922066,16933.0,16932.0,1.60051324]